[Event "Championnat du monde jeunes U10"]
[Date "2024.11.15"]
[White "Tamiolakis, Grigorios"]
[Black "Buklaho, Ignacy"]
[WhiteElo "1591"]
[BlackElo "1822"]
[Round "1.42"]
[Result "0-1"]
[TimeControl "5400+30"]

1. d4 {[%clk 1:30:57]} 1... d5 {[%clk 1:30:43]} 2. c4 {[%clk 1:31:17]} 2... e6
{[%clk 1:31:06]} 3. Nc3 {[%clk 1:31:23]} 3... Nf6 {[%clk 1:31:30]} 4. Nf3 {[%clk
1:31:24]} 4... Be7 {[%clk 1:31:51]} 5. Bg5 {[%clk 1:31:35]} 5... O-O {[%clk
1:32:07]} 6. e3 {[%clk 1:31:46]} 6... Nbd7 {[%clk 1:32:23]} 7. Bd3 {[%clk
1:29:03]} 7... dxc4 {[%clk 1:32:40]} 8. Bxc4 {[%clk 1:29:25]} 8... a6 {[%clk
1:32:57]} 9. Bd3 {[%clk 1:28:04]} 9... b5 {[%clk 1:31:54]} 10. O-O {[%clk
1:25:40]} 10... Bb7 {[%clk 1:30:58]} 11. a3 {[%clk 1:23:24]} 11... h6 {[%clk
1:30:04]} 12. Bf4 {[%clk 1:19:09]} 12... c5 {[%clk 1:27:30]} 13. dxc5 {[%clk
1:14:50]} 13... Nxc5 {[%clk 1:27:29]} 14. Be2 {[%clk 1:13:51]} 14... Qb6 {[%clk
1:26:49]} 15. Qc2 {[%clk 1:08:10]} 15... Rac8 {[%clk 1:25:45]} 16. Rac1 {[%clk
1:04:27]} 16... Nce4 {[%clk 1:23:23]} 17. Qb3 {[%clk 0:55:28]} 17... Nxc3 {[%clk
1:20:57]} 18. Rxc3 {[%clk 0:55:02]} 18... Ne4 {[%clk 1:11:03]} 19. Rxc8 {[%clk
0:49:57]} 19... Rxc8 {[%clk 1:11:21]} 20. Rd1 {[%clk 0:35:59]} 20... Bd5 {[%clk
1:07:03]} 21. Qd3 {[%clk 0:31:38]} 21... Qb7 {[%clk 1:04:35]} 22. Bf1 {[%clk
0:15:33]} 22... Bf6 {[%clk 0:52:54]} 23. Rb1 {[%clk 0:05:00]} 23... Bc4 {[%clk
0:38:41]} 24. Qd1 {[%clk 0:04:53]} 24... Bxf1 {[%clk 0:38:48]} 25. Qxf1 {[%clk
0:04:32]} 25... g5 {[%clk 0:38:25]} 26. Be5 {[%clk 0:02:45]} 26... Bxe5 {[%clk
0:38:23]} 27. Nxe5 {[%clk 0:03:07]} 27... Nd2 {[%clk 0:38:48]} 28. Qd1 {[%clk
0:03:08]} 28... Nxb1 {[%clk 0:39:13]} 29. Qxb1 {[%clk 0:03:33]} 29... Qe4 {[%clk
0:39:28]} 0-1

[Variant "Standard"]
[Site "Europe Echecs"]

[Event "Championnat du monde jeunes U10"]
[Date "2024.11.15"]
[White "Dayal, Samar"]
[Black "Mitrovic, Vasilije"]
[WhiteElo "1818"]
[BlackElo "1590"]
[Round "1.43"]
[Result "1-0"]
[TimeControl "5400+30"]

1. e4 {[%clk 1:30:58]} 1... e5 {[%clk 1:30:47]} 2. Nf3 {[%clk 1:31:20]} 2... Nc6
{[%clk 1:31:12]} 3. Bb5 {[%clk 1:31:42]} 3... a6 {[%clk 1:30:18]} 4. Ba4 {[%clk
1:31:50]} 4... b5 {[%clk 1:29:32]} 5. Bb3 {[%clk 1:32:15]} 5... Bc5 {[%clk
1:23:04]} 6. O-O {[%clk 1:17:22]} 6... Nf6 {[%clk 1:20:06]} 7. c3 {[%clk
1:16:00]} 7... d6 {[%clk 1:17:20]} 8. d4 {[%clk 1:16:05]} 8... exd4 {[%clk
1:17:31]} 9. cxd4 {[%clk 1:16:12]} 9... Bb6 {[%clk 1:16:48]} 10. h3 {[%clk
1:14:20]} 10... h6 {[%clk 1:11:45]} 11. a3 {[%clk 1:07:44]} 11... O-O {[%clk
1:04:13]} 12. Nc3 {[%clk 1:06:54]} 12... Re8 {[%clk 0:59:05]} 13. Re1 {[%clk
1:05:41]} 13... Bb7 {[%clk 0:51:27]} 14. Bf4 {[%clk 1:02:59]} 14... Qd7 {[%clk
0:44:40]} 15. Bc2 {[%clk 0:59:22]} 15... Rad8 {[%clk 0:43:16]} 16. Qd3 {[%clk
0:55:42]} 16... d5 {[%clk 0:40:55]} 17. Nxd5 {[%clk 0:52:42]} 17... Nxd5 {[%clk
0:40:56]} 18. exd5 {[%clk 0:53:11]} 18... Rxe1+ {[%clk 0:36:58]} 19. Rxe1 {[%clk
0:52:40]} 19... Ne7 {[%clk 0:35:46]} 20. Qh7+ {[%clk 0:52:07]} 20... Kf8 {[%clk
0:36:03]} 21. Qh8+ {[%clk 0:52:32]} 21... Ng8 {[%clk 0:36:03]} 22. Bh7 {[%clk
0:52:59]} 22... Qe6 {[%clk 0:31:41]} 23. Rxe6 {[%clk 0:53:27]} 23... fxe6 {[%clk
0:31:25]} 24. Qxg8+ {[%clk 0:53:52]} 24... Ke7 {[%clk 0:31:15]} 25. Qxg7+ {[%clk
0:54:15]} 25... Ke8 {[%clk 0:31:10]} 26. Bg6# {[%clk 0:54:42]} 1-0

[Variant "Standard"]
[Site "Europe Echecs"]

[Event "Championnat du monde jeunes U10"]
[Date "2024.11.15"]
[White "Aitmukhanov, Arsen"]
[Black "Nikitakis, Michail"]
[WhiteElo "1579"]
[BlackElo "1818"]
[Round "1.44"]
[Result "1-0"]
[TimeControl "5400+30"]

1. e4 {[%clk 1:30:51]} 1... e5 {[%clk 1:30:51]} 2. Nf3 {[%clk 1:29:47]} 2... Nc6
{[%clk 1:31:05]} 3. Bc4 {[%clk 1:30:07]} 3... Nf6 {[%clk 1:31:30]} 4. d3 {[%clk
1:30:25]} 4... Bc5 {[%clk 1:31:51]} 5. c3 {[%clk 1:30:18]} 5... d6 {[%clk
1:31:26]} 6. b4 {[%clk 1:30:26]} 6... Bb6 {[%clk 1:31:51]} 7. a4 {[%clk
1:30:48]} 7... a6 {[%clk 1:31:21]} 8. O-O {[%clk 1:30:10]} 8... O-O {[%clk
1:31:15]} 9. Nbd2 {[%clk 1:30:14]} 9... h6 {[%clk 1:29:20]} 10. Re1 {[%clk
1:29:10]} 10... Be6 {[%clk 1:28:44]} 11. Bb3 {[%clk 1:26:04]} 11... Ne7 {[%clk
1:23:27]} 12. Nf1 {[%clk 1:26:03]} 12... Ng6 {[%clk 1:18:45]} 13. Bc2 {[%clk
1:24:04]} 13... c6 {[%clk 1:07:58]} 14. Be3 {[%clk 1:22:29]} 14... Bxe3 {[%clk
0:53:49]} 15. Rxe3 {[%clk 1:17:11]} 15... Nf4 {[%clk 0:33:13]} 16. d4 {[%clk
1:14:08]} 16... Qc7 {[%clk 0:27:00]} 17. Re1 {[%clk 1:09:23]} 17... g5 {[%clk
0:21:16]} 18. Ne3 {[%clk 1:02:28]} 18... Kh8 {[%clk 0:07:00]} 19. c4 {[%clk
1:01:37]} 19... Rad8 {[%clk 0:03:15]} 20. Nf5 {[%clk 1:00:48]} 20... Bxf5 {[%clk
0:03:21]} 21. exf5 {[%clk 1:01:05]} 21... Rfe8 {[%clk 0:02:55]} 22. dxe5 {[%clk
0:51:08]} 22... dxe5 {[%clk 0:02:46]} 23. Qb1 {[%clk 0:48:44]} 23... g4 {[%clk
0:00:33]} 24. Nh4 {[%clk 0:48:46]} 24... Rd2 {[%clk 0:00:32]} 25. Qb2 {[%clk
0:36:37]} 25... Red8 {[%clk 0:00:34]} 26. Rad1 {[%clk 0:32:35]} 26... R2d4
{[%clk 0:00:31]} 27. g3 {[%clk 0:29:54]} 27... Nh3+ {[%clk 0:00:46]} 28. Kf1
{[%clk 0:30:13]} 28... c5 {[%clk 0:00:38]} 29. Qc1 {[%clk 0:29:09]} 29... Kg7
{[%clk 0:00:33]} 30. b5 {[%clk 0:18:14]} 30... axb5 {[%clk 0:00:32]} 31. cxb5
{[%clk 0:18:12]} 31... Qd6 {[%clk 0:00:33]} 32. Rxd4 {[%clk 0:13:31]} 32... cxd4
{[%clk 0:00:31]} 33. Bd3 {[%clk 0:11:32]} 33... Qd5 {[%clk 0:00:34]} 34. Ng2
{[%clk 0:10:37]} 34... Qf3 {[%clk 0:00:47]} 35. Qc2 {[%clk 0:10:12]} 35... e4
{[%clk 0:00:44]} 36. Bc4 {[%clk 0:09:50]} 36... d3 {[%clk 0:00:32]} 37. Qd2
{[%clk 0:10:02]} 37... Rc8 {[%clk 0:00:31]} 38. Bb3 Rc3 {[%clk 0:00:32]} 39. Bd1
{[%clk 0:09:17]} 39... Qxf5 {[%clk 0:00:31]} 40. Ne3 {[%clk 0:09:37]} 40... Qc5
{[%clk 0:00:34]} 41. Bxg4 {[%clk 0:09:33]} 41... Ng5 {[%clk 0:00:33]} 42. h4
{[%clk 0:07:22]} 42... Nxg4 {[%clk 0:00:32]} 43. Nxg4 {[%clk 0:07:43]} 43... Rc2
{[%clk 0:00:31]} 44. Qf4 {[%clk 0:08:02]} 44... Nh3 {[%clk 0:00:31]} 45. Qxh6+
{[%clk 0:08:23]} 1-0

[Variant "Standard"]
[Site "Europe Echecs"]

[Event "Championnat du monde jeunes U10"]
[Date "2024.11.15"]
[White "Tulegen, Ramazan"]
[Black "Roth, Elai"]
[WhiteElo "1818"]
[BlackElo "1577"]
[Round "1.45"]
[Result "1-0"]
[TimeControl "5400+30"]

1. e4 c5 2. Nf3 e6 3. d4 cxd4 4. Nxd4 Nf6 5. Nc3 Nc6 6. Ndb5 Bb4 7. a3 Bxc3+ 8.
Nxc3 d5 9. exd5 exd5 10. Bd3 d4 11. Ne2 Bg4 12. O-O O-O 13. f3 Bh5 14. Bg5 Qd6
15. Qd2 Rad8 16. Rad1 Rfe8 17. Ng3 Bg6 18. Rfe1 h6 19. Bxg6 fxg6 20. Bxf6 Rxe1+
21. Rxe1 Qxf6 22. Ne4 Qf5 23. Qe2 Qd5 24. Nf2 Na5 25. Nd3 Qb5 26. Qe6+ Kh7 27.
Re5 Qc4 28. Qxc4 Nxc4 29. Re7 Rb8 30. Rd7 Ne3 31. Rxd4 Nxc2 32. Rd7 a5 33. Nc5
b5 34. Ne6 Rg8 35. Kf2 b4 36. Rc7 Na1 37. axb4 axb4 38. Nd4 Rd8 39. Ke3 Re8+ 40.
Kd3 Re1 41. Rb7 Rg1 42. g4 Rg2 43. Rxb4 Rxh2 44. Ra4 Rh1 45. Ra8 Rd1+ 46. Ke3
Re1+ 47. Kf2 Rb1 48. Kg3 g5 49. Ra4 Rg1+ 50. Kh2 Rb1 51. Rb4 Rd1 52. Nf5 Rd7 53.
Nd4 Ra7 54. Kg3 Rc7 55. Ne6 Re7 56. Re4 Rb7 57. Rc4 Rxb2 58. Rc7 Rb8 59. Nxg7
Kg6 60. Nf5 Rh8 61. Rc6+ Kf7 62. Nxh6+ Ke7 63. Rg6 Nb3 64. Nf5+ Kf7 65. Rxg5 Kf6
66. f4 Nd2 67. Nd6 Rd8 68. Rf5+ Kg6 69. Rg5+ Kf6 70. Rd5 Nc4 71. Ne4+ Ke7 72.
Rxd8 Kxd8 73. f5 Ke7 74. Kf4 Kf7 75. Ng5+ Kf6 76. Nf3 Nd6 77. g5+ Kf7 78. Ne5+
Kf8 79. f6 Ne8 80. Kf5 Nc7 81. g6 Nd5 82. Nd7+ 1-0

[Variant "Standard"]
[Site "Europe Echecs"]

[Event "Championnat du monde jeunes U10"]
[Date "2024.11.15"]
[White "Wang, Yuwei"]
[Black "Zhang, Oscar Y"]
[WhiteElo "1576"]
[BlackElo "1817"]
[Round "1.46"]
[Result "0-1"]
[TimeControl "5400+30"]

1. d4 {[%clk 1:30:57]} 1... d5 {[%clk 1:30:53]} 2. c4 {[%clk 1:31:20]} 2... c6
{[%clk 1:31:20]} 3. Nc3 {[%clk 1:31:45]} 3... dxc4 {[%clk 1:31:46]} 4. e3 {[%clk
1:32:08]} 4... b5 {[%clk 1:32:02]} 5. a4 {[%clk 1:32:15]} 5... b4 {[%clk
1:32:09]} 6. Na2 {[%clk 1:32:04]} 6... e6 {[%clk 1:32:07]} 7. Bxc4 {[%clk
1:32:16]} 7... Nf6 {[%clk 1:32:08]} 8. Bd2 {[%clk 1:31:12]} 8... a5 {[%clk
1:32:24]} 9. Nf3 {[%clk 1:29:49]} 9... Nbd7 {[%clk 1:29:49]} 10. O-O {[%clk
1:27:09]} 10... Be7 {[%clk 1:29:39]} 11. Nc1 {[%clk 1:24:26]} 11... O-O {[%clk
1:29:47]} 12. Nd3 {[%clk 1:22:42]} 12... Bb7 {[%clk 1:29:18]} 13. Nf4 {[%clk
1:21:49]} 13... c5 {[%clk 1:28:51]} 14. Bxe6 {[%clk 1:19:35]} 14... fxe6 {[%clk
1:28:51]} 15. Nxe6 {[%clk 1:19:57]} 15... Qb6 {[%clk 1:29:05]} 16. Nxf8 {[%clk
1:19:58]} 16... Rxf8 {[%clk 1:29:23]} 17. dxc5 {[%clk 1:18:26]} 17... Nxc5
{[%clk 1:28:22]} 18. Nd4 {[%clk 1:17:22]} 18... Bd6 {[%clk 1:23:33]} 19. Qe2
{[%clk 1:11:31]} 19... Kh8 {[%clk 1:20:43]} 20. f4 {[%clk 0:57:26]} 20... Nfe4
{[%clk 1:19:58]} 21. Be1 {[%clk 0:51:26]} 21... Ba6 {[%clk 1:19:20]} 22. Nb5
{[%clk 0:51:48]} 22... Nxa4 {[%clk 1:19:34]} 23. Rxa4 {[%clk 0:49:17]} 23...
Bxb5 {[%clk 1:19:53]} 24. Qc2 {[%clk 0:48:14]} 24... Qxe3+ {[%clk 1:19:35]} 25.
Bf2 {[%clk 0:46:50]} 25... Nxf2 {[%clk 1:19:49]} 26. Qxf2 {[%clk 0:46:34]} 26...
Qxf2+ {[%clk 1:20:00]} 27. Rxf2 {[%clk 0:46:53]} 27... Bxa4 {[%clk 1:20:20]} 28.
Rf3 {[%clk 0:46:58]} 28... Rxf4 {[%clk 1:20:28]} 29. Rxf4 {[%clk 0:46:55]} 29...
Bxf4 {[%clk 1:20:49]} 30. Kf2 {[%clk 0:46:25]} 30... Bc6 {[%clk 1:21:09]} 31. g3
{[%clk 0:45:16]} 31... Be5 {[%clk 1:21:26]} 32. Ke3 {[%clk 0:44:22]} 32... a4
{[%clk 1:21:46]} 33. Kd2 {[%clk 0:44:31]} 33... a3 {[%clk 1:22:09]} 34. bxa3
{[%clk 0:44:31]} 34... bxa3 {[%clk 1:22:33]} 35. Kc2 {[%clk 0:43:47]} 35... a2
{[%clk 1:22:56]} 36. h4 {[%clk 0:43:10]} 36... a1=Q {[%clk 1:23:12]} 37. Kd3
{[%clk 0:43:23]} 37... Qd4+ {[%clk 1:23:31]} 38. Ke2 {[%clk 0:43:42]} 38... Bb5+
{[%clk 1:23:50]} 39. Kf3 {[%clk 0:43:44]} 39... Qd3+ {[%clk 1:24:07]} 40. Kg4
{[%clk 0:43:30]} 40... Bd7+ {[%clk 1:24:26]} 41. Kg5 {[%clk 0:43:15]} 41... Qg6#
0-1

[Variant "Standard"]
[Site "Europe Echecs"]

[Event "Championnat du monde jeunes U10"]
[Date "2024.11.15"]
[White "Mariani, Kim Paul"]
[Black "Pierloot, Siebe"]
[WhiteElo "1814"]
[BlackElo "1573"]
[Round "1.47"]
[Result "1-0"]
[TimeControl "5400+30"]

1. e4 {[%clk 1:30:58]} 1... e5 {[%clk 1:30:49]} 2. Nf3 {[%clk 1:31:11]} 2... Nc6
{[%clk 1:31:02]} 3. Bc4 {[%clk 1:31:18]} 3... Bc5 {[%clk 1:31:14]} 4. c3 {[%clk
1:31:23]} 4... Nf6 {[%clk 1:30:18]} 5. d4 {[%clk 1:31:06]} 5... exd4 {[%clk
1:30:21]} 6. cxd4 {[%clk 1:31:30]} 6... Bb4+ {[%clk 1:30:04]} 7. Nc3 Nxe4 {[%clk
1:23:54]} 8. O-O {[%clk 1:31:49]} 8... Bxc3 {[%clk 1:21:04]} 9. d5 {[%clk
1:31:49]} 9... Ne7 {[%clk 1:14:11]} 10. bxc3 {[%clk 1:31:32]} 10... Nxc3 {[%clk
1:07:54]} 11. Qd4 {[%clk 1:29:39]} 11... b5 {[%clk 0:58:59]} 12. Qxg7 {[%clk
1:07:32]} 12... Rg8 {[%clk 0:57:53]} 13. Qxh7 {[%clk 1:06:11]} 13... bxc4 {[%clk
0:57:18]} 14. Re1 {[%clk 1:05:55]} 14... Rf8 {[%clk 0:53:57]} 15. Bh6 {[%clk
1:06:07]} 15... d6 {[%clk 0:49:53]} 16. Qg7 {[%clk 1:03:24]} 16... Kd7 {[%clk
0:49:02]} 17. Qxf8 {[%clk 1:03:07]} 17... Qxf8 {[%clk 0:48:56]} 18. Bxf8 {[%clk
1:03:30]} 18... Ncxd5 {[%clk 0:49:19]} 19. Rad1 {[%clk 1:02:53]} 19... Bb7
{[%clk 0:48:48]} 20. Bxe7 {[%clk 1:01:15]} 20... Nxe7 {[%clk 0:48:22]} 21. Ne5+
{[%clk 1:01:41]} 21... Ke8 {[%clk 0:48:11]} 22. Nxc4 {[%clk 1:01:52]} 22... d5
{[%clk 0:48:01]} 23. Ne3 {[%clk 1:01:12]} 23... Kd7 {[%clk 0:47:57]} 24. Ng4
{[%clk 1:00:05]} 24... Ng8 {[%clk 0:46:41]} 25. Ne5+ {[%clk 0:59:31]} 25... Ke6
{[%clk 0:46:09]} 26. Rb1 {[%clk 0:58:50]} 26... Ba6 {[%clk 0:45:03]} 27. Rbc1
{[%clk 0:58:39]} 27... Bb7 {[%clk 0:42:52]} 28. Rxc7 {[%clk 0:58:22]} 28... Kf6
{[%clk 0:41:36]} 29. Rxf7+ {[%clk 0:56:43]} 29... Kg5 {[%clk 0:41:17]} 30. f4+
{[%clk 0:56:10]} 30... Kh5 {[%clk 0:41:25]} 31. Rh7+ {[%clk 0:56:12]} 31... Nh6
{[%clk 0:41:37]} 32. g4+ {[%clk 0:56:39]} 32... Kh4 {[%clk 0:41:47]} 33. Rxh6#
{[%clk 0:57:03]} 1-0

[Variant "Standard"]
[Site "Europe Echecs"]

[Event "Championnat du monde jeunes U10"]
[Date "2024.11.15"]
[White "Rama, Federico"]
[Black "Jani, Aakash"]
[WhiteElo "1564"]
[BlackElo "1810"]
[Round "1.48"]
[Result "0-1"]
[TimeControl "5400+30"]

1. Nf3 {[%clk 1:30:46]} 1... Nf6 {[%clk 1:30:39]} 2. d4 {[%clk 1:30:59]} 2... g6
{[%clk 1:30:31]} 3. c4 {[%clk 1:30:55]} 3... Bg7 {[%clk 1:30:23]} 4. e3 {[%clk
1:31:02]} 4... O-O {[%clk 1:29:23]} 5. Nc3 {[%clk 1:31:12]} 5... d6 {[%clk
1:29:18]} 6. Be2 {[%clk 1:31:19]} 6... Nbd7 {[%clk 1:28:36]} 7. O-O {[%clk
1:29:09]} 7... c6 {[%clk 1:27:35]} 8. Bd2 {[%clk 1:27:51]} 8... e5 {[%clk
1:24:43]} 9. Qc2 {[%clk 1:19:40]} 9... Qc7 {[%clk 1:21:22]} 10. Rfe1 {[%clk
1:17:43]} 10... Re8 {[%clk 1:20:42]} 11. Rad1 {[%clk 1:15:56]} 11... a6 {[%clk
1:17:03]} 12. Ng5 {[%clk 1:10:01]} 12... h6 {[%clk 1:16:31]} 13. Nge4 {[%clk
1:09:41]} 13... Nxe4 {[%clk 1:15:56]} 14. Nxe4 {[%clk 1:09:21]} 14... f5 {[%clk
1:15:29]} 15. Nc3 {[%clk 1:05:42]} 15... Nf6 {[%clk 1:15:13]} 16. b3 {[%clk
1:00:57]} 16... b6 {[%clk 1:11:47]} 17. Bc1 {[%clk 0:57:42]} 17... Bb7 {[%clk
1:10:59]} 18. Ba3 e4 {[%clk 1:10:35]} 19. Qd2 {[%clk 0:38:24]} 19... Rac8 {[%clk
1:09:19]} 20. d5 {[%clk 0:23:33]} 20... c5 {[%clk 1:06:52]} 21. b4 {[%clk
0:13:26]} 21... Nd7 {[%clk 1:06:04]} 22. Rb1 {[%clk 0:07:28]} 22... cxb4 {[%clk
1:04:47]} 23. Bxb4 {[%clk 0:07:37]} 23... Ne5 {[%clk 1:04:53]} 24. Rec1 {[%clk
0:04:28]} 24... Nxc4 {[%clk 1:01:11]} 25. Bxc4 {[%clk 0:03:35]} 25... Qxc4
{[%clk 1:01:27]} 26. Na4 {[%clk 0:03:10]} 26... Qxd5 {[%clk 1:00:31]} 27. Qxd5+
{[%clk 0:02:54]} 27... Bxd5 {[%clk 1:00:51]} 28. Rxc8 {[%clk 0:02:20]} 28...
Rxc8 {[%clk 1:01:09]} 29. Nxb6 {[%clk 0:02:38]} 29... Bxa2 {[%clk 1:01:23]} 30.
Rd1 {[%clk 0:02:48]} 30... Rc6 {[%clk 0:56:04]} 31. Rxd6 {[%clk 0:02:50]} 31...
Rc1+ {[%clk 0:56:23]} 0-1

[Variant "Standard"]
[Site "Europe Echecs"]

[Event "Championnat du monde jeunes U10"]
[Date "2024.11.15"]
[White "Zhou, Guoyu"]
[Black "Veber, Tibor"]
[WhiteElo "1809"]
[BlackElo "1532"]
[Round "1.1"]
[Result "1-0"]
[TimeControl "5400+30"]

1. d4 {[%clk 1:30:58]} 1... Nf6 {[%clk 1:30:50]} 2. c4 {[%clk 1:31:23]} 2... c5
{[%clk 1:31:02]} 3. d5 {[%clk 1:31:43]} 3... b5 {[%clk 1:31:21]} 4. cxb5 {[%clk
1:30:24]} 4... a6 {[%clk 1:29:28]} 5. bxa6 {[%clk 1:29:52]} 5... Bxa6 {[%clk
1:28:57]} 6. Nc3 {[%clk 1:29:27]} 6... d6 {[%clk 1:28:56]} 7. e4 {[%clk
1:29:29]} 7... Bxf1 {[%clk 1:28:24]} 8. Kxf1 {[%clk 1:29:47]} 8... g6 {[%clk
1:27:48]} 9. Nf3 {[%clk 1:28:19]} 9... Bg7 {[%clk 1:27:20]} 10. g3 {[%clk
1:28:05]} 10... Nbd7 {[%clk 1:26:53]} 11. Kg2 {[%clk 1:27:35]} 11... O-O {[%clk
1:26:48]} 12. a4 {[%clk 1:27:21]} 12... Qc7 {[%clk 1:26:29]} 13. Qc2 {[%clk
1:27:00]} 13... Rfb8 {[%clk 1:26:11]} 14. Bd2 {[%clk 1:26:51]} 14... Nb6 {[%clk
1:24:49]} 15. b3 {[%clk 1:20:07]} 15... Nbd7 {[%clk 1:22:36]} 16. Nb5 {[%clk
1:18:01]} 16... Qd8 {[%clk 1:22:07]} 17. Bc3 {[%clk 1:18:07]} 17... Ne8 {[%clk
1:21:49]} 18. Nd2 {[%clk 1:17:14]} 18... Nc7 {[%clk 1:21:20]} 19. Na3 {[%clk
1:03:22]} 19... Na6 {[%clk 1:19:10]} 20. Bxg7 {[%clk 1:03:31]} 20... Kxg7 {[%clk
1:19:22]} 21. Qc3+ {[%clk 1:03:56]} 21... Kg8 {[%clk 1:19:27]} 22. Ndc4 {[%clk
1:04:04]} 22... Nb4 {[%clk 1:18:53]} 23. Nb5 {[%clk 1:04:09]} 23... Nb6 {[%clk
1:18:31]} 24. Rhe1 {[%clk 0:59:59]} 24... Nd7 {[%clk 1:17:12]} 25. Rad1 {[%clk
0:58:39]} 25... Nb6 {[%clk 1:16:31]} 26. f4 {[%clk 0:55:56]} 26... Nc8 {[%clk
1:16:36]} 27. e5 {[%clk 0:51:54]} 27... Rb7 {[%clk 1:15:03]} 28. Re2 {[%clk
0:46:41]} 28... Rab8 {[%clk 1:14:13]} 29. Qf3 {[%clk 0:44:25]} 29... Kg7 {[%clk
1:13:13]} 30. g4 {[%clk 0:40:29]} 30... Na7 {[%clk 1:11:19]} 31. exd6 {[%clk
0:37:04]} 31... Nxb5 {[%clk 1:11:34]} 32. dxe7 {[%clk 0:37:09]} 32... Rxe7
{[%clk 1:11:26]} 33. Rxe7 {[%clk 0:37:16]} 33... Qxe7 {[%clk 1:11:28]} 34. axb5
{[%clk 0:37:26]} 34... Rxb5 {[%clk 1:11:07]} 35. d6 {[%clk 0:37:30]} 35... Qd8
{[%clk 1:10:29]} 36. d7 {[%clk 0:34:10]} 36... Nc2 {[%clk 1:07:56]} 37. Qe4
{[%clk 0:27:51]} 37... Nd4 {[%clk 1:08:01]} 38. Qe5+ {[%clk 0:27:28]} 38... Kf8
{[%clk 1:07:10]} 39. Rxd4 {[%clk 0:26:38]} 39... Rxb3 {[%clk 1:07:00]} 40. Re4
1-0

[Variant "Standard"]
[Site "Europe Echecs"]

[Event "Championnat du monde jeunes U10"]
[Date "2024.11.15"]
[White "Enkhbileg, Gantumur"]
[Black "Ramesan, Raunak Amit"]
[WhiteElo "1529"]
[BlackElo "1802"]
[Round "1.2"]
[Result "0-1"]
[TimeControl "5400+30"]

1. e4 e5 2. Nf3 {[%clk 1:30:48]} 2... Nc6 {[%clk 1:31:18]} 3. Bc4 {[%clk
1:31:31]} 3... Bc5 {[%clk 1:31:31]} 4. O-O {[%clk 1:31:41]} 4... Nf6 {[%clk
1:31:28]} 5. d3 {[%clk 1:31:59]} 5... d6 {[%clk 1:30:58]} 6. h3 {[%clk 1:32:22]}
6... a6 {[%clk 1:30:32]} 7. c3 {[%clk 1:29:49]} 7... O-O {[%clk 1:28:50]} 8. Bb3
{[%clk 1:26:21]} 8... Ba7 {[%clk 1:28:59]} 9. Nbd2 {[%clk 1:25:50]} 9... Ne7
{[%clk 1:27:57]} 10. Re1 {[%clk 1:25:05]} 10... Ng6 {[%clk 1:28:12]} 11. Nf1
{[%clk 1:23:55]} 11... Re8 {[%clk 1:25:33]} 12. Ng3 {[%clk 1:23:46]} 12... c6
{[%clk 1:22:35]} 13. Ng5 {[%clk 1:17:57]} 13... d5 {[%clk 1:16:26]} 14. Be3
{[%clk 1:02:00]} 14... Bb6 {[%clk 1:14:29]} 15. Bxb6 {[%clk 0:58:45]} 15... h6
{[%clk 1:12:37]} 0-1

[Variant "Standard"]
[Site "Europe Echecs"]

[Event "Championnat du monde jeunes U10"]
[Date "2024.11.15"]
[White "Kovacs, Balazs"]
[Black "Burba, Mikita"]
[WhiteElo "1800"]
[BlackElo "1528"]
[Round "1.3"]
[Result "0-1"]
[TimeControl "5400+30"]

1. e4 {[%clk 1:30:57]} 1... c5 {[%clk 1:30:51]} 2. Nf3 {[%clk 1:31:23]} 2... Nc6
{[%clk 1:31:06]} 3. d4 {[%clk 1:31:46]} 3... cxd4 {[%clk 1:31:27]} 4. Nxd4
{[%clk 1:32:12]} 4... g6 {[%clk 1:31:43]} 5. c4 {[%clk 1:32:28]} 5... Bg7 {[%clk
1:31:57]} 6. Be3 {[%clk 1:32:38]} 6... Nf6 {[%clk 1:31:48]} 7. Nc3 {[%clk
1:32:20]} 7... d6 {[%clk 1:31:50]} 8. Be2 {[%clk 1:32:10]} 8... O-O {[%clk
1:29:44]} 9. O-O {[%clk 1:31:19]} 9... a5 {[%clk 1:29:34]} 10. f3 {[%clk
1:27:52]} 10... Bd7 {[%clk 1:29:14]} 11. b3 {[%clk 1:23:29]} 11... Nxd4 {[%clk
1:28:18]} 12. Bxd4 {[%clk 1:23:47]} 12... Bc6 {[%clk 1:28:31]} 13. Rc1 {[%clk
1:23:29]} 13... Nd7 {[%clk 1:28:37]} 14. Be3 {[%clk 1:15:21]} 14... Be5 {[%clk
1:22:43]} 15. Kh1 {[%clk 1:02:01]} 15... Nc5 {[%clk 1:20:00]} 16. Qe1 {[%clk
0:48:00]} 16... e6 {[%clk 1:18:00]} 17. Qf2 {[%clk 0:43:48]} 17... Qe7 {[%clk
1:13:32]} 18. Bd4 {[%clk 0:35:17]} 18... f5 {[%clk 0:59:57]} 19. Qe3 {[%clk
0:23:42]} 19... Bxd4 {[%clk 0:49:33]} 20. Qxd4 {[%clk 0:24:05]} 20... e5 {[%clk
0:49:17]} 21. Qe3 {[%clk 0:23:58]} 21... f4 {[%clk 0:49:12]} 22. Qf2 {[%clk
0:19:25]} 22... Ne6 {[%clk 0:46:47]} 23. Bd3 {[%clk 0:15:45]} 23... Kh8 {[%clk
0:41:54]} 24. a3 {[%clk 0:13:23]} 24... Nd4 {[%clk 0:33:47]} 25. Rb1 {[%clk
0:12:07]} 25... g5 {[%clk 0:24:13]} 26. Ne2 {[%clk 0:11:04]} 26... Ne6 {[%clk
0:22:20]} 27. b4 {[%clk 0:11:08]} 27... axb4 {[%clk 0:21:52]} 28. axb4 {[%clk
0:11:24]} 28... h5 {[%clk 0:19:54]} 29. b5 {[%clk 0:08:24]} 29... Bd7 {[%clk
0:19:24]} 30. Nc3 {[%clk 0:07:43]} 30... Nd4 {[%clk 0:14:22]} 31. Ne2 {[%clk
0:05:41]} 31... Ne6 {[%clk 0:14:12]} 32. Nc3 {[%clk 0:03:41]} 32... Nd4 {[%clk
0:14:08]} 33. Ne2 {[%clk 0:03:05]} 33... Ne6 {[%clk 0:14:33]} 34. Nc3 {[%clk
0:03:26]} 34... g4 {[%clk 0:12:08]} 35. Nd5 {[%clk 0:03:00]} 35... Qg5 {[%clk
0:11:48]} 36. fxg4 {[%clk 0:02:03]} 36... hxg4 {[%clk 0:12:09]} 37. Qe1 {[%clk
0:00:42]} 37... g3 {[%clk 0:11:56]} 38. b6 {[%clk 0:00:32]} 38... Qh4 {[%clk
0:11:44]} 39. h3 {[%clk 0:00:57]} 39... Ng5 {[%clk 0:11:23]} 40. Rb2 {[%clk
0:00:36]} 40... Bxh3 {[%clk 0:09:56]} 41. gxh3 {[%clk 0:00:56]} 41... Qxh3+
{[%clk 0:10:11]} 42. Kg1 {[%clk 0:01:20]} 42... f3 {[%clk 0:10:20]} 43. Rff2
{[%clk 0:01:00]} 43... g2 {[%clk 0:08:06]} 44. Rxg2 {[%clk 0:00:31]} 44... fxg2
{[%clk 0:08:17]} 0-1

[Variant "Standard"]
[Site "Europe Echecs"]